bitfinex-derivatives/quotes_ETHF0:USTF0_20250701
["timestamp","ask_amount","ask_price","bid_price","bid_amount"]
[1751396861031,2.29631,2413.1,2413.0,62.16413367]
[1751396861524,0.82855,2413.4,2413.3,0.8285]
[1751396863126,0.8285,2413.5,2413.4,0.8285]
[1751396863332,0.82854,2413.3,2413.2,2.48107658]
[1751396863525,2.21103,2413.4,2413.3,0.82854]
[1751396864329,0.82856,2413.3,2413.2,0.82855]
[1751396864929,2.21103,2413.4,2413.3,0.82854]
[1751396866327,1.3825,2413.4,2413.3,0.82854]
[1751396866832,0.82845,2413.6,2413.5,0.82848]
[1751396867033,0.8285,2413.5,2413.4,0.82848]
[1751396867331,0.82849,2413.5,2413.4,0.82848]
[1751396867634,0.82849,2413.5,2413.4,29.33448]
[1751396867833,0.82846,2413.6,2413.5,0.82844]
[1751396868034,0.82843,2413.7,2413.6,0.82842]
[1751396869437,2.16683,2413.7,2413.6,0.82842]
[1751396872536,1.3384,2413.7,2413.6,0.82842]
[1751396872941,1.4488,2413.8,2413.7,0.82841]
[1751396873238,0.82837,2413.8,2413.7,0.82841]
[1751396873640,2.29467,2413.8,2413.7,0.82841]
[1751396873936,1.4663,2413.8,2413.7,0.82841]
[1751396874234,1.4021,2413.9,2413.8,0.82837]
[1751396874435,2.23047,2413.9,2413.8,0.82837]
[1751396874631,3.69677,2413.9,2413.8,0.82837]
[1751396874833,2.8684,2413.9,2413.8,0.82837]
[1751396875039,2.45593501,2414.4,2414.3,0.8282]
[1751396875236,5.38483501,2414.9,2414.3,31.51215395]
[1751396875537,6.21283501,2414.9,2414.8,3.90418395]
[1751396875734,5.38483501,2414.9,2414.8,3.90418395]
[1751396875936,5.38483501,2414.9,2414.7,28.434]
[1751396875937,6.21283501,2414.9,2414.7,28.434]
[1751396876240,1.4663,2414.8,2414.7,29.26205]
[1751396876440,1.4663,2414.8,2414.7,32.33820395]
[1751396876837,1.4663,2414.8,2414.7,3.90420395]
[1751396877043,1.4663,2414.8,2414.7,45.61520395]
[1751396877832,2.29433,2414.8,2414.7,41.711]
[1751396878041,2.29433,2414.8,2414.7,28.417]
[1751396878342,1.4663,2414.8,2414.7,29.24506]
[1751396878536,3.28391501,2415.0,2414.9,0.828]
[1751396878737,4.74311501,2415.0,2414.8,0.82801]
[1751396878938,0.828,2414.9,2414.8,28.4]
[1751396879137,2.2872,2414.9,2414.8,28.4]
[1751396879338,2.2872,2414.9,2414.8,29.22803]
[1751396879636,2.2872,2414.9,2414.8,28.4]
[1751396880743,1.4592,2414.9,2414.5,3.04461658]
[1751396880939,0.8281,2414.6,2414.5,30.03251658]
[1751396881138,0.8281,2414.6,2414.5,28.38]
[1751396881338,1.4592,2414.9,2414.5,28.38]
[1751396881644,0.8281,2414.6,2414.5,28.38]
[1751396881941,0.8281,2414.6,2414.5,29.20013]
[1751396882544,3.67609,2414.7,2414.6,0.8281]
[1751396882941,1.4079,2414.7,2414.6,0.8281]
[1751396883143,0.82798,2415.0,2414.9,0.82797]
[1751396883443,4.2095,2415.1,2414.8,28.363]
[1751396883634,0.828,2415.0,2414.9,0.82799]
[1751396883837,0.828,2415.0,2414.8,28.363]
[1751396883838,5.03745,2415.1,2415.0,0.82796]
[1751396884343,0.82799,2415.0,2414.9,0.82798]
[1751396884847,5.03744,2415.1,2415.0,0.82796]
[1751396885046,0.82798,2415.0,2414.9,0.82798]
[1751396885342,0.82797,2415.0,2414.9,0.82797]
[1751396885542,3.58875,2415.1,2415.0,0.82796]
[1751396886542,0.82798,2415.0,2414.9,0.82797]
[1751396887047,3.58875,2415.1,2415.0,0.82796]
[1751396887546,0.82799,2415.0,2414.9,0.82798]
[1751396889751,1.4079,2415.1,2415.0,0.82796]
[1751396889938,2.26639,2415.3,2415.2,0.82789]
[1751396891247,0.82789,2415.2,2415.1,30.5152]
[1751396891847,1.4385,2415.3,2415.2,0.82789]
[1751396891848,2.26638,2415.3,2415.2,0.82789]
[1751396892050,1.4385,2415.3,2415.2,0.82789]
[1751396892548,2.26636,2415.3,2415.2,0.82789]
[1751396894650,2.26637,2415.3,2415.2,0.82789]
[1751396895044,0.82789,2415.2,2415.1,30.5152]
[1751396895446,0.82789,2415.2,2415.1,1.3863]
[1751396895647,0.82789,2415.2,2414.8,1.3368]
[1751396895648,0.828,2414.9,2414.8,13.282]
[1751396895846,0.828,2414.9,2414.8,41.532]
[1751396896041,1.369,2415.0,2414.4,1.4036]
[1751396896347,2.07021,2414.7,2414.4,28.247]
[1751396896650,0.8282,2414.3,2414.2,61.095]
[1751396896849,0.8282,2414.3,2414.2,103.32624]
[1751396897148,0.82827,2414.1,2414.0,1.65251658]
[1751396897350,0.82827,2414.1,2414.0,30.72281658]
[1751396897752,2.7723,2414.4,2414.0,28.242]
[1751396897952,0.82823,2414.3,2414.2,0.82822]
[1751396898345,3.55023,2414.9,2414.0,31.96528658]
[1751396898551,4.9155,2414.8,2414.3,5.90041388]
[1751396898751,0.82816,2414.5,2414.4,41.39]
[1751396898952,0.8282,2414.3,2414.2,2.16562]
[1751396899148,0.8282,2414.3,2414.2,42.7254]
[1751396899350,0.82819,2414.4,2414.3,0.8282]
[1751396899651,0.82816,2414.5,2414.3,0.8282]
[1751396899857,0.82817,2414.4,2414.3,29.0482]
[1751396900058,1.4764,2414.6,2414.3,28.22]
[1751396900257,0.82817,2414.4,2414.3,29.04819]
[1751396900649,0.82817,2414.4,2414.3,28.22]
[1751396900854,0.82817,2414.4,2414.3,0.8282]
[1751396901055,0.82817,2414.4,2414.3,41.372]
[1751396901856,0.82816,2414.5,2414.3,41.372]
[1751396902161,0.82817,2414.4,2414.3,42.20018]
[1751396903564,0.82816,2414.5,2414.4,0.82813]
[1751396903765,0.82816,2414.5,2414.4,29.02313]
[1751396904464,2.30452,2414.6,2414.5,0.82813]
[1751396904962,2.30452,2414.6,2414.4,28.195]
[1751396904963,0.82813,2414.5,2414.4,29.02314]
[1751396905561,2.30451,2414.6,2414.5,0.82813]
[1751396905761,2.45593501,2415.3,2414.5,5.14294411]
[1751396905963,0.82793,2415.1,2415.0,3.07261411]
[1751396906263,0.82793,2415.1,2415.0,32.07257411]
[1751396906870,2.24473,2415.1,2415.0,31.24461411]
[1751396907264,1.4168,2415.1,2415.0,32.07257411]
[1751396907464,3.57551,2415.2,2415.1,0.82793]
[1751396907465,0.82791,2415.2,2415.1,0.82793]
[1751396907663,0.82793,2415.1,2415.0,32.07256411]
[1751396907865,0.82785,2415.4,2415.3,0.82784]
[1751396908067,0.82785,2415.4,2415.3,28.98384]
[1751396908369,0.82785,2415.4,2415.3,28.156]
[1751396908570,2.24465,2415.4,2415.3,28.156]
[1751396908768,0.82795,2415.1,2415.0,0.82794]
[1751396909065,0.82795,2415.1,2415.0,42.13894]
[1751396909663,1.4168,2415.4,2414.9,5.89854475]
[1751396909869,0.82793,2415.1,2415.0,28.141]
[1751396910762,0.82793,2415.1,2415.0,28.96896]
[1751396911164,0.82793,2415.1,2415.0,28.96496]
[1751396911364,0.82793,2415.1,2415.0,0.82796]
[1751396911564,0.82793,2415.1,2415.0,28.95396]
[1751396911869,2.18152,2415.2,2415.1,0.82793]
[1751396912263,0.82793,2415.1,2415.0,0.82794]
[1751396912464,0.82793,2415.1,2415.0,41.28]
[1751396913167,0.82796,2415.0,2414.9,13.98897]
[1751396913368,0.82796,2415.0,2414.9,42.10697]
[1751396913565,2.06987,2415.1,2414.7,1.4514]
[1751396913766,0.82803,2414.8,2414.7,14.6124]
[1751396913961,0.82813,2414.5,2414.4,59.651]
[1751396914165,0.82813,2414.5,2414.4,87.758]
[1751396914364,0.82813,2414.5,2414.4,88.58617]
[1751396914570,0.82806,2414.8,2414.7,0.82803]
[1751396914758,2.8285,2415.1,2414.9,0.828]
[1751396914964,2.06972,2415.3,2414.9,47.98854475]
[1751396914965,0.82796,2415.0,2414.9,47.98854475]
[1751396915368,0.82796,2415.0,2414.9,0.828]
[1751396915567,0.82796,2415.0,2414.9,42.084]
[1751396915969,0.82796,2415.0,2414.9,41.256]
[1751396916466,4.93365,2415.2,2414.7,5.89854475]
[1751396916666,0.82803,2414.9,2414.8,42.075]
[1751396916862,2.06995,2415.0,2414.6,2.47695267]
[1751396917063,2.24223,2414.8,2414.7,28.083]
[1751396917267,2.24223,2414.8,2414.6,14.81236036]
[1751396917268,0.8281,2414.6,2414.5,1.65136036]
[1751396917567,0.82813,2414.5,2414.4,102.54236036]
[1751396917863,2.24233,2414.5,2414.4,1.65136036]
[1751396918070,0.8282,2414.3,2414.2,1.65136036]
[1751396918665,0.82824,2414.2,2414.1,1.65136036]
[1751396919066,0.82827,2414.1,2414.0,42.0643]
[1751396919267,0.82827,2414.1,2414.0,41.236]
[1751396919474,0.82834,2413.9,2413.8,2.47971036]
[1751396919680,0.82834,2413.9,2413.8,15.64171036]
[1751396919867,0.82834,2413.9,2413.8,43.70571036]
[1751396920069,0.82833,2414.0,2413.9,0.82832]
[1751396920270,1.3743,2414.2,2414.0,0.82829]
[1751396920470,0.8283,2414.1,2414.0,28.061]
[1751396920672,0.8283,2414.1,2414.0,28.8893]
[1751396920871,0.8283,2414.1,2414.0,28.061]
[1751396921073,0.82834,2413.9,2413.8,1.65136036]
[1751396921271,2.07094,2413.8,2413.4,2.47695267]
[1751396921476,0.82856,2413.3,2413.2,0.82855]
[1751396921671,0.82854,2413.4,2413.3,0.82854]
[1751396922170,0.8285,2413.5,2413.4,0.8285]
[1751396922767,2.20276,2413.6,2413.5,0.82848]
[1751396923276,2.20276,2413.6,2413.4,0.82849]
[1751396923675,1.3743,2413.6,2413.5,0.82848]
[1751396923876,0.82844,2413.6,2413.5,0.82848]
[1751396924075,1.4191,2413.7,2413.4,0.82849]
[1751396924275,0.82848,2413.5,2413.3,28.052]
[1751396924573,1.4191,2413.7,2413.1,13.164]
[1751396924778,0.82858,2413.2,2413.1,13.164]
[1751396925371,0.82865,2413.0,2412.9,59.648]
[1751396929576,0.82868,2412.9,2412.8,0.8287]
[1751396930180,2.15865,2413.1,2413.0,0.82865]
[1751396930382,0.8286,2413.2,2413.1,0.82861]
[1751396930676,2.07103,2413.7,2413.3,0.82852]
[1751396930677,0.82853,2413.4,2413.3,0.82852]
[1751396930877,0.82848,2413.5,2413.4,0.82848]
[1751396931677,0.82846,2413.6,2413.5,0.82845]
[1751396932276,0.82843,2413.7,2413.6,0.82843]
[1751396932478,0.82847,2413.6,2413.5,0.82846]
[1751396932677,3.42074,2413.7,2413.0,1.3388]
[1751396932876,0.82857,2413.3,2413.2,0.82856]
[1751396933779,0.82858,2413.2,2413.1,1.3987]
[1751396934177,0.82858,2413.2,2413.1,2.22731]
[1751396934373,0.82858,2413.2,2413.1,1.3987]
[1751396935080,0.82858,2413.2,2412.9,13.049]
[1751396935081,0.82865,2413.0,2412.9,13.049]
[1751396935275,0.82878,2412.7,2412.5,14.4487]
[1751396935577,0.82874,2412.8,2412.7,0.82872]
[1751396935976,0.82867,2413.0,2412.9,0.82868]
[1751396936282,0.82868,2413.0,2412.9,0.82865]
[1751396936580,0.82872,2412.9,2412.8,0.82869]
[1751396937475,2.07163,2413.0,2412.5,42.4067]
[1751396937677,0.82877,2412.7,2412.6,0.82878]
[1751396937982,0.82878,2412.6,2412.5,43.2275]
[1751396938177,0.82878,2412.6,2412.5,14.4497]
[1751396938576,0.82878,2412.6,2412.5,15.27852]
[1751396939379,0.82878,2412.7,2412.6,0.82876]
[1751396939676,0.82878,2412.6,2412.5,14.4497]
[1751396939876,2.22238,2412.6,2412.5,14.4497]
[1751396940683,0.82877,2412.7,2412.6,0.82874]
[1751396940880,0.82878,2412.6,2412.5,15.2785]
[1751396941281,0.82878,2412.7,2412.6,0.82876]
[1751396942680,0.82872,2412.8,2412.7,0.82875]
[1751396943980,0.82878,2412.7,2412.6,0.82877]
[1751396945087,2.07184,2412.8,2412.4,13.88083]
[1751396945286,0.82882,2412.5,2412.4,40.957]
[1751396945787,0.82882,2412.5,2412.3,0.82886]
[1751396945788,0.82889,2412.3,2412.2,59.671]
[1751396945984,0.82896,2412.2,2412.0,2.7721]
[1751396946183,0.82896,2412.2,2412.1,0.82893]
[1751396947082,1.4097,2412.6,2412.1,32.0398]
[1751396947390,0.82884,2412.5,2412.4,0.82883]
[1751396947585,0.82874,2412.8,2412.7,0.82873]
[1751396947787,1.4086,2412.9,2412.7,0.82873]
[1751396947982,1.4086,2412.9,2412.8,0.82872]
[1751396948179,2.7963,2413.1,2412.9,0.82865]
[1751396948379,0.8287,2412.9,2412.8,0.82869]
[1751396948886,0.82866,2413.0,2412.9,0.82865]
[1751396949686,0.82864,2413.1,2413.0,0.82862]
[1751396950188,1.3528,2413.2,2412.9,0.82866]
[1751396950189,0.82867,2413.0,2412.9,0.82866]
[1751396950386,0.82864,2413.1,2413.0,0.82862]
[1751396950588,0.8286,2413.2,2413.1,0.82861]
[1751396950788,0.82864,2413.1,2413.0,0.82862]
[1751396951490,0.8286,2413.2,2413.1,0.82858]
[1751396951993,0.82863,2413.1,2413.0,0.82862]
[1751396952896,0.82867,2413.0,2412.9,0.82866]
[1751396953293,2.8849,2413.4,2412.9,2.07171]
[1751396953489,0.8286,2413.2,2413.1,0.82858]
[1751396954585,1.4086,2413.4,2413.1,1.4051]
[1751396954787,0.82858,2413.2,2413.1,2.2337]
[1751396955592,0.82858,2413.2,2413.1,1.4051]
[1751396956000,0.82868,2412.9,2412.8,1.65076246]
[1751396956196,0.82868,2412.9,2412.8,2.47946246]
[1751396956392,2.07167,2413.0,2412.6,1.4374]
[1751396956598,0.82875,2412.8,2412.7,0.82872]
[1751396956893,0.82875,2412.7,2412.6,2.26616]
[1751396957095,0.82882,2412.5,2412.4,1.65076246]
[1751396957597,0.82885,2412.4,2412.3,1.65076246]
[1751396957891,0.82884,2412.5,2412.4,0.82883]
[1751396958092,0.82881,2412.6,2412.5,0.8288]
[1751396958296,0.82882,2412.5,2412.4,3.91579246]
[1751396958495,0.82882,2412.5,2412.4,1.4362]
[1751396959794,0.82882,2412.5,2412.4,2.26505]
[1751396959995,0.82882,2412.5,2412.4,1.4362]
[1751396960200,0.82882,2412.5,2412.4,2.26505]
[1751396961195,0.82882,2412.5,2412.4,1.4362]
[1751396963200,0.82892,2412.2,2412.1,1.3505]
[1751396963391,0.82892,2412.2,2412.1,2.17946]
[1751396963796,0.82891,2412.3,2412.2,0.8289]
[1751396964388,2.885,2412.8,2412.2,1.65076246]
[1751396964389,2.07181,2412.8,2412.2,1.65076246]
[1751396964589,2.07163,2413.0,2412.6,0.82876]
[1751396964590,0.82876,2412.7,2412.6,0.82876]
[1751396964794,0.82876,2412.7,2412.5,0.8288]
[1751396964991,0.82876,2412.7,2412.6,2.26688]
[1751396965195,0.82874,2412.8,2412.6,2.26688]
[1751396965395,0.82874,2412.8,2412.7,2.17925]
[1751396965793,2.45593501,2413.4,2412.7,7.24904475]
[1751396965993,4.2195,2413.4,2413.0,5.89854475]
[1751396966195,0.82859,2413.2,2413.1,0.82859]
[1751396966401,0.82856,2413.3,2413.2,0.82857]
[1751396966601,0.82859,2413.2,2413.1,0.82858]
[1751396966801,0.82857,2413.3,2413.2,0.82856]
[1751396967002,0.82853,2413.4,2413.3,0.82853]
[1751396967705,0.82853,2413.4,2413.3,0.82852]
[1751396967906,2.17011,2413.5,2413.4,0.82851]
[1751396968103,0.82854,2413.4,2413.3,0.82854]
[1751396968511,0.82846,2413.6,2413.5,0.82846]
[1751396968704,0.82846,2413.6,2413.5,0.82848]
[1751396969105,3.88963501,2413.8,2413.3,7.25354475]
[1751396969306,0.82849,2413.5,2413.4,0.82849]
[1751396969607,0.82849,2413.5,2413.3,8.08206475]
[1751396969811,0.82851,2413.4,2413.3,8.08206475]
[1751396970109,0.82851,2413.4,2413.3,2.18352]
[1751396970409,0.8285,2413.5,2413.4,0.82851]
[1751396970707,0.82848,2413.5,2413.4,0.82849]
[1751396971012,0.82839,2413.8,2413.7,0.82839]
[1751396971208,0.82842,2413.7,2413.4,7.30764475]
[1751396971404,0.82851,2413.5,2413.3,1.355]
[1751396971608,0.82848,2413.5,2413.4,13.7805]
[1751396972004,0.82848,2413.5,2413.4,13.78051]
[1751396972204,0.82848,2413.5,2413.4,12.952]
[1751396972710,0.82851,2413.4,2413.3,1.355]
[1751396972901,0.82851,2413.4,2413.3,14.307]
[1751396973604,0.82851,2413.4,2413.3,15.13554]
[1751396973908,0.82851,2413.4,2413.3,14.307]
[1751396974117,0.82851,2413.4,2413.3,1.355]
[1751396974410,0.82854,2413.3,2413.2,1.4764]
[1751396974604,0.82854,2413.3,2413.1,12.951]
[1751396974605,0.82858,2413.2,2413.1,12.951]
[1751396974805,2.21378,2413.2,2413.1,12.951]
[1751396975005,0.82861,2413.1,2413.0,13.77965]
[1751396975206,0.82861,2413.1,2413.0,12.951]
[1751396975814,0.82861,2413.1,2413.0,13.77965]
[1751396976710,0.8286,2413.2,2413.1,0.82858]
[1751396977516,0.82857,2413.3,2413.2,0.82854]
[1751396978014,0.82851,2413.5,2413.4,0.82851]
[1751396978214,0.82853,2413.4,2413.3,0.82851]
[1751396980316,0.82861,2413.2,2413.0,14.60076246]
[1751396980618,2.07111,2413.6,2413.0,16.35691]
[1751396980813,0.82854,2413.4,2413.3,0.82852]
[1751396981714,3.48634,2413.8,2413.3,2.07137]
[1751396981914,3.48634,2413.8,2413.2,5.89854475]
[1751396981915,0.8285,2413.5,2413.4,2.29217]
[1751396982110,0.8285,2413.5,2413.4,1.4637]
[1751396982410,0.82854,2413.3,2413.2,0.82856]
[1751396982819,0.82858,2413.2,2413.1,3.64529]
[1751396983219,0.82865,2413.0,2412.9,15.42942246]
[1751396983519,0.82865,2413.0,2412.9,13.77866]
[1751396983717,0.82868,2412.9,2412.8,2.29241]
[1751396983915,0.82868,2412.9,2412.8,14.4137]
[1751396984214,0.82868,2412.9,2412.8,15.24242]
[1751396985413,0.82863,2413.1,2413.0,0.82865]
[1751396985921,0.82857,2413.3,2413.2,0.82855]
[1751396987021,2.07127,2413.5,2413.4,0.82848]
[1751396987022,0.82852,2413.5,2413.4,0.82848]
[1751396987521,0.82854,2413.4,2413.3,0.82851]
[1751396988519,0.82854,2413.3,2413.2,2.25905]
[1751396988720,6.23596,2413.7,2413.2,1.4305]
[1751396989023,0.82851,2413.5,2413.4,0.82848]
[1751396989521,0.82847,2413.6,2413.5,0.82845]
[1751396991118,4.99334,2413.7,2413.6,0.82844]
[1751396991315,3.52894,2413.7,2413.6,0.82844]
[1751396991518,0.82847,2413.6,2413.5,0.82845]
[1751396992424,0.82839,2413.8,2413.7,0.82838]
[1751396994326,0.82844,2413.7,2413.6,0.82841]
[1751396995830,0.82839,2413.8,2413.7,0.82837]
[1751396997221,1.4265,2413.9,2413.8,0.82837]
[1751396997426,0.82834,2413.9,2413.8,0.82837]
[1751396997925,0.82833,2414.0,2413.9,0.82831]
[1751396998326,0.82831,2414.1,2414.0,0.82829]
[1751396999228,0.82831,2414.1,2413.8,7.96948475]
[1751396999229,0.82833,2414.0,2413.9,0.82831]
[1751396999418,0.8283,2414.1,2414.0,0.82827]
[1751396999622,3.57406,2414.2,2414.1,0.82827]
[1751396999822,1.4758,2414.3,2414.2,0.82823]
[1751397000023,0.82819,2414.4,2414.3,0.82818]
[1751397000326,0.82822,2414.3,2414.2,0.82821]
[1751397000927,0.82819,2414.4,2414.3,0.82818]
[1751397001620,4.94512,2414.6,2414.5,0.82813]
[1751397002023,2.7256,2414.6,2414.5,0.82813]
[1751397002432,1.3914,2414.9,2414.8,0.82803]
[1751397002625,2.7804,2415.0,2414.9,0.82799]
[1751397003130,1.332,2415.3,2414.8,1.4538]
[1751397003430,0.82791,2415.2,2415.1,0.82792]
[1751397003627,0.82793,2415.1,2415.0,0.82794]
[1751397003927,0.82791,2415.2,2415.1,0.82792]
[1751397004230,1.3892,2415.2,2415.1,0.82792]
[1751397004529,3.51536,2415.3,2415.2,0.82789]
[1751397004832,0.82789,2415.2,2415.0,6.72648475]
[1751397005029,0.82789,2415.2,2415.1,0.82793]
[1751397005429,0.82793,2415.1,2415.0,6.72648475]
[1751397005630,0.82796,2415.0,2414.9,1.3511]
[1751397005832,0.82798,2415.0,2414.9,0.82798]
[1751397006028,0.82799,2414.9,2414.8,14.3098]
[1751397006333,0.82799,2414.9,2414.6,27.519]
[1751397006529,0.82807,2414.7,2414.6,1.4312]
[1751397006832,0.82807,2414.7,2414.6,15.11427]
[1751397008032,0.82805,2414.8,2414.7,0.82806]
[1751397008940,0.82806,2414.7,2414.6,42.61727]
[1751397009137,2.7058,2415.0,2414.6,41.7892]
[1751397009337,2.19488,2415.0,2414.9,0.82799]
[1751397009544,0.82795,2415.1,2415.0,0.82795]
[1751397009740,2.7363,2415.3,2415.2,0.82789]
[1751397009741,3.56418,2415.3,2415.2,0.82789]
[1751397010838,1.4043,2415.3,2415.2,0.82789]
[1751397011039,0.41194576,2415.8,2415.2,0.82789]
[1751397011040,2.45593501,2416.3,2415.4,0.82779]
[1751397011343,0.82779,2415.5,2415.4,6.72634475]
[1751397011645,0.82781,2415.5,2415.4,0.82781]
[1751397012144,0.82782,2415.5,2415.4,0.82782]
[1751397012848,0.82778,2415.6,2415.5,0.82778]
[1751397013344,0.8278,2415.5,2415.4,0.8278]
[1751397013742,0.82777,2415.6,2415.5,0.82777]
[1751397015544,1.4465,2415.8,2415.7,0.82772]
[1751397015845,2.8327,2416.1,2415.7,7.96781475]
[1751397016037,2.06855,2416.6,2416.0,5.89854475]
[1751397016243,1.3539,2416.5,2416.2,0.82752]
[1751397016546,1.3539,2416.5,2416.3,0.82751]
[1751397016547,0.82749,2416.4,2416.3,0.82751]
[1751397016745,2.8279,2416.5,2416.4,0.82748]
[1751397017048,2.18136,2416.5,2416.4,0.82748]
[1751397017243,2.06811,2417.1,2416.6,0.82739]
[1751397017443,1.3539,2416.9,2416.5,0.82743]
[1751397017644,1.3539,2416.9,2416.2,5.89854475]
[1751397017846,0.82751,2416.4,2416.0,1.3894]
[1751397018051,3.42221,2416.9,2416.3,0.82749]
[1751397018252,0.82748,2416.5,2416.3,0.82749]
[1751397018451,0.82748,2416.5,2416.4,0.82748]
[1751397018752,0.82747,2416.5,2416.3,0.8275]
[1751397018952,2.06848,2416.7,2416.2,13.67853]
[1751397019152,2.06837,2416.8,2416.3,0.8275]
[1751397019352,0.82751,2416.3,2416.2,12.764]
[1751397019552,0.82749,2416.4,2416.3,0.82751]
[1751397019956,0.82751,2416.3,2416.2,12.764]
[1751397020154,2.06845,2416.7,2416.2,12.764]
[1751397020347,0.82751,2416.4,2416.3,0.82751]
[1751397020952,2.06839,2416.8,2416.2,12.764]
[1751397020953,0.82746,2416.5,2416.4,0.82748]
[1751397021150,0.82745,2416.5,2416.4,0.82747]
[1751397021350,0.82749,2416.4,2416.3,0.82751]
[1751397021854,0.82743,2416.6,2416.5,0.82744]
[1751397022055,0.82736,2416.8,2416.6,0.82741]
[1751397022454,2.18123,2416.9,2416.7,0.82738]
[1751397022654,1.3587,2417.0,2416.8,0.82732]
[1751397022845,0.82726,2417.1,2416.9,0.82731]
[1751397023050,0.82728,2417.0,2416.9,0.82731]
[1751397023348,1.3676,2417.3,2416.8,12.763]
[1751397023541,1.3676,2417.3,2416.9,2.2644]
[1751397023743,0.82728,2417.0,2416.9,1.4371]
[1751397023949,0.82734,2416.8,2416.7,12.763]
[1751397024449,0.82733,2416.9,2416.7,13.59038]
[1751397024647,0.8273,2417.0,2416.8,0.82734]
[1751397024845,0.82727,2417.1,2416.9,0.82731]
[1751397025052,0.82727,2417.1,2417.0,0.82728]
[1751397025254,0.82728,2417.0,2416.9,0.82729]
[1751397025555,0.82732,2416.9,2416.8,0.82733]
[1751397025852,0.82729,2417.0,2416.8,0.82732]
[1751397026154,0.82731,2416.9,2416.8,0.82732]
[1751397026550,3.43558,2417.3,2416.8,0.82732]
[1751397026551,0.8273,2417.0,2416.8,0.82732]
[1751397026751,1.3676,2417.3,2416.7,20.08444475]
[1751397026955,0.8273,2417.0,2416.7,20.08444475]
[1751397027155,0.8273,2417.0,2416.8,0.82734]
[1751397027352,0.82737,2416.8,2416.6,2.7578]
[1751397027556,0.82737,2416.8,2416.7,12.76]
[1751397027757,2.06802,2417.2,2416.7,12.76]
[1751397028054,0.82733,2416.9,2416.8,0.82734]
[1751397028258,0.82732,2416.9,2416.7,12.76]
[1751397028557,0.82723,2417.2,2417.0,0.82726]
[1751397028759,1.3676,2417.3,2416.6,59.607]
[1751397029057,0.82729,2417.0,2416.8,0.82732]
[1751397029357,0.82729,2417.0,2416.9,0.82731]
[1751397029656,3.43556,2417.3,2416.6,65.50554475]
[1751397029657,1.3676,2417.3,2416.6,65.50554475]
[1751397029956,1.3676,2417.3,2416.7,40.114]
[1751397029957,0.82734,2416.8,2416.7,40.114]
[1751397030154,3.43555,2417.3,2416.7,40.114]
[1751397030155,0.82733,2416.9,2416.7,0.82735]
[1751397030356,0.8273,2417.0,2416.9,0.82731]
[1751397030859,2.19479,2417.3,2417.2,0.82721]
[1751397031255,0.82713,2417.5,2417.4,0.82714]
[1751397031456,1.3371,2417.5,2417.1,30.7939]
[1751397031651,1.3371,2417.5,2417.4,0.82714]
[1751397031851,0.8271,2417.5,2417.4,13.58514]
[1751397032156,0.28181545,2417.6,2417.5,0.8271]
[1751397032762,0.8271,2417.5,2417.4,13.58511]
[1751397032961,0.82726,2417.1,2416.9,1.3677]
[1751397033162,0.8272,2417.3,2417.2,0.82717]
[1751397033363,0.8272,2417.3,2417.2,0.8272]
[1751397033657,0.28181545,2417.6,2417.2,7.96656475]
[1751397033962,0.82714,2417.4,2417.3,0.82715]
[1751397034262,0.82723,2417.2,2417.1,28.14822]
[1751397034558,3.49494,2417.3,2416.9,1.3677]
[1751397034760,2.18666,2417.1,2417.0,13.58425]
[1751397034950,1.4739,2417.3,2417.2,0.82721]
[1751397035152,0.82723,2417.2,2417.1,0.82722]
[1751397035556,2.30109,2417.3,2417.2,0.82721]
[1751397036756,2.8216,2417.5,2417.3,0.82714]
[1751397036956,0.82716,2417.4,2417.3,0.82714]
[1751397037357,0.82719,2417.3,2417.2,0.82718]
[1751397037558,2.18656,2417.4,2417.3,0.82717]
[1751397037758,2.18654,2417.4,2417.3,0.82717]
[1751397038159,1.3594,2417.4,2417.3,0.82717]
[1751397038463,0.28181545,2417.6,2417.5,0.8271]
[1751397038657,0.28181545,2417.6,2417.5,6.72564475]
[1751397039562,0.8271,2417.5,2417.4,2.23822]
[1751397039959,0.82717,2417.4,2417.3,13.58214]
[1751397040158,0.82717,2417.4,2417.3,0.82714]
[1751397040360,0.82717,2417.4,2417.3,40.86814]
[1751397040566,0.82714,2417.5,2417.4,0.82712]
[1751397040755,0.82714,2417.4,2417.3,40.86815]
[1751397040960,0.82721,2417.3,2417.2,0.8272]
[1751397041162,2.15511,2417.3,2417.2,40.8652]
[1751397041365,2.15511,2417.3,2416.9,9.32951475]
[1751397041561,2.15511,2417.3,2417.2,0.82721]
[1751397041954,0.82723,2417.2,2417.1,28.10521]
[1751397042264,1.3279,2417.2,2417.1,0.82721]
[1751397042464,1.3279,2417.2,2417.1,13.58221]
[1751397042768,0.82721,2417.2,2417.1,13.58222]
[1751397042961,0.82728,2417.1,2417.0,40.026]
[1751397043168,0.82728,2417.0,2416.9,0.82729]
[1751397043364,2.15518,2417.0,2416.9,0.82729]
[1751397043572,0.82734,2416.9,2416.8,0.82734]
[1751397043770,0.82734,2416.9,2416.7,41.62736]
[1751397043771,0.82735,2416.8,2416.7,41.62736]
[1751397043971,0.82738,2416.7,2416.6,12.755]
[1751397044163,3.70698,2416.7,2416.6,12.755]
[1751397044365,3.70698,2416.7,2416.6,15.23318246]
[1751397044563,3.70698,2416.7,2416.6,14.40576246]
[1751397044766,3.70698,2416.7,2416.6,12.755]
[1751397045464,3.70698,2416.7,2416.6,13.58242]